Cogmind - Beta 16 @@@ ROGUE MODE // 2025.11.20 @ 20:32:21 Player: IMPACTmeme Result: Destroyed by as-09132 with Assembled Maul Performance ------------- Evolutions (0) 0 Regions Visited (2) 400 Robots Destroyed (27) 135 Value Destroyed (416) 416 Prototype IDs (2) 40 Alien Tech Used (0) 0 Bonus (0) 0 TOTAL SCORE: 991 Bonus ------- None Cogmind --------- Core Integrity 0/250 Matter 300/300 Energy 33/100 System Corruption 2% Temperature Cool (1) Movement Treading (160) Location -10/Mines Parts ------- > --- POWER (1) -------- (None) > --- PROPULSION (2) --- Light Treads > --- UTILITY (2) ------ Large Storage Unit > --- WEAPON (2) ------- (None) > --- INVENTORY (15) --- Signal Interpreter Power Shielding Peak State ------------ > --- POWER ------------ Light Ion Engine > --- PROPULSION ------- Aluminum Leg Aluminum Leg > --- UTILITY ---------- Small Storage Unit High-capacity Battery > --- WEAPON ----------- Assault Rifle Assault Rifle > --- INVENTORY -------- Light Ion Engine Light Treads Light Treads Wheel Wheel Small Laser Grenade Launcher [Rating: 7] Favorites ----------- Power Light Ion Engine Engine Light Ion Engine Propulsion Aluminum Leg Treads Light Treads Leg Aluminum Leg Wheel Wheel Utility Large Storage Unit Device ECM Suite Storage Large Storage Unit Weapon Assault Rifle Energy Gun Small Laser Ballistic Gun Assault Rifle Launcher Grenade Launcher Build | -11 -10 -10 ------- Run | Yrd Mat Min Slots Evolved . | . . . Power . | . . . Propulsion . | . . . Utility . | . . . Weapon . | . . . Parts Attached 20 | 7 10 3 Power 5 | 1 3 1 Engine 5 | 1 3 1 Core . | . . . Reactor . | . . . Propulsion 6 | 3 1 2 Treads 2 | . . 2 Leg 3 | 2 1 . Wheel 1 | 1 . . Hover . | . . . Flight . | . . . Utility 4 | 1 3 . Device 1 | . 1 . Storage 3 | 1 2 . Processor . | . . . Hackware . | . . . Protection . | . . . Artifact . | . . . Weapon 5 | 2 3 . Energy Gun 2 | . 2 . Energy Cannon . | . . . Ballistic Gun 2 | 2 . . Ballistic Cannon . | . . . Launcher 1 | . 1 . Special Weapon . | . . . Impact Weapon . | . . . Slashing Weapon . | . . . Piercing Weapon . | . . . Special Melee Weapon . | . . . Unidentified Prototypes . | . . . Parts Lost 7 | . . 7 Power 1 | . . 1 Propulsion 3 | . . 3 Utility 1 | . . 1 Weapon 2 | . . 2 Highest Loss Streak 4 | . . 4 To Critical Strikes . | . . . Average Backups 6 | 4 7 3 Power . | 1 . . Propulsion 2 | 2 2 1 Utility 1 | . 1 2 Weapon 1 | . 2 . Tool/Special . | . . . Unused Backups 3 | . 1 2 Power . | . . . Propulsion 1 | . 1 . Utility 2 | . . 2 Weapon . | . . . Tool/Special . | . . . Average Slot Usage (%) 96 | . 99 91 Engine 13 | . 14 11 Treads 1 | . . 3 Leg 26 | . 28 22 Device 7 | . 4 13 Storage 20 | . 22 14 Energy Gun 7 | . 5 11 Ballistic Gun 16 | . 17 13 Launcher 3 | . 4 . Peak Build Rating 7 | 6 7 7 Average Rating 6 | 3 6 6 On Entrance 4 | . 6 7 Avg Prop Armor Cover (%) . | . . . Naked Turns . | . . . Heaviest Build 34 | 12 34 30 Greatest Support 40 | 20 20 40 Greatest Overweight (x) 8 | . 1 8 Average Overweight (x) . | . . . Largest Inventory Capacity 15 | 8 15 15 Average Capacity 13 | 7 13 15 Most Carried 10 | 8 10 7 Average Carried 6 | 5 7 3 Final Capacity 15 | 8 15 15 Final Carried 6 | 6 6 2 Class Distribution -------------------- 100% | Mutant Dominant Class ---------------- Mutant | -10/Materials Mutant | -10/Mines Resources | -11 -10 -10 ----------- Run | Yrd Mat Min Matter Collected 615 | 187 377 51 Remotely . | . . . Salvage Created 482 | . 423 59 Parts 40 | . 38 2 Haulers Intercepted 1 | . 1 . Recyclers Shooed . | . . . Parts Field Recycled . | . . . Retrieved Matter . | . . . Parts Self-Destructed . | . . . Prevented . | . . . Parts Restored . | . . . Kills | -11 -10 -10 ------- Run | Yrd Mat Min Combat Hostiles Destroyed 20 | . 16 4 Guns 10 | . 6 4 AOE 10 | . 10 . Classes Destroyed 7 | . 6 1 Worker 3 | . 3 . Builder 1 | . 1 . Hauler 1 | . 1 . Watcher 3 | . 3 . Swarmer 12 | . 9 3 Grunt 7 | . 7 . Assembled 1 | . . 1 Best Kill Streak 7 | . 7 3 Combat Bots Only 6 | . 6 3 Max Kills in Single Turn 4 | . 4 1 Gunslinging . | . . . Exploded 3 | . 3 . Melee . | . . . Uniques/NPCs Destroyed . | . . . Combat | -11 -10 -10 -------- Run | Yrd Mat Min Hostile Shots Fired 138 | . 71 67 Missed 41 | . 25 16 Hits 97 | . 46 51 Melee 10 | . . 10 Projectile 87 | . 46 41 AOE 6 | . . 6 Critical Strikes 3 | . 1 2 Damage Taken 1339 | . 431 908 Core 252 | . 27 225 Absorbed by Shields . | . . . Core Remaining (%) 100 | 100 . . Volleys Fired 50 | . 35 15 Largest 2 | . 2 2 Hottest 60 | . 60 60 Shots Fired 91 | . 66 25 Gun 81 | . 56 25 Cannon . | . . . Launcher 10 | . 10 . Special . | . . . Kinetic 52 | . 37 15 Thermal 11 | . 1 10 Explosive 10 | . 10 . Electromagnetic 18 | . 18 . Robot Hit Streak 7 | . 7 6 Robot Miss Streak 6 | . 6 4 Penetration Max . | . . . Secondary Targets . | . . . Shots Hit Robots 38 | . 25 13 Core Hits 40 | . 34 6 Critical Kills . | . . . Critical Parts Destroyed . | . . . Critical Strikes . | . . . Melee Attacks . | . . . Impact . | . . . Slashing . | . . . Piercing . | . . . Sneak Attacks . | . . . Combat Hostiles . | . . . Follow-up Attacks . | . . . Damage Inflicted 1300 | . 1147 153 Guns 502 | . 349 153 Cannons . | . . . Explosions 789 | . 789 . Melee . | . . . Ramming 9 | . 9 . Kinetic 368 | . 275 93 Thermal 111 | . 51 60 Explosive 750 | . 750 . Electromagnetic 62 | . 62 . Impact . | . . . Slashing . | . . . Piercing . | . . . Highest Corruption 2 | . . 2 Average Corruption 1 | . . 1 Corruption Purged . | . . . Corruption Blocked . | . . . Overload Shots . | . . . Overflow Damage 15 | . 15 . Projectiles . | . . . Explosions 15 | . 15 . Melee . | . . . Knockbacks . | . . . Impact . | . . . Kinetic . | . . . Secondary . | . . . Self-Inflicted Damage . | . . . Shots . | . . . Rammed . | . . . Targets Rammed 2 | . 2 . Kicked 2 | . 2 . Crushed . | . . . Highest Temperature 12 | . 12 . Average Temperature 8 | . 8 . Received Heat Transfer 126 | . 126 . Siege Activations . | . . . Martial Activations . | . . . Shielding Activations . | . . . Robots Disrupted . | . . . Combat Hostiles . | . . . Robots Corrupted . | . . . Combat Hostiles . | . . . Parts Fried . | . . . Impact Corruptions . | . . . Robots Melted . | . . . Combat Hostiles . | . . . Parts Melted . | . . . Heat Transferred 175 | . 25 150 Parts Sabotaged . | . . . Parts Stolen . | . . . Parts Stripped . | . . . Power Chain Reactions 1 | . 1 . Alert | -11 -10 -10 ------- Run | Yrd Mat Min Maximum Alert Level 1 | . 1 . Low Security (%) 82 | 100 74 100 Level 1 17 | . 25 . Level 2 . | . . . Level 3 . | . . . Level 4 . | . . . Level 5 . | . . . High Security . | . . . Max Security . | . . . Peak Influence 283 | . 283 164 Initial 94 | . . 94 Average 102 | . 119 81 Influence Increases 573 | . 503 70 Destroy 0b10 Robot/C 380 | . 320 60 Destroy 0b10 Robot/NC 40 | . 40 . Destroy Leader 78 | . 68 10 Successful Hack 13 | . 13 . Destroy Structure 62 | . 62 . Influence Decreases 573 | . 260 313 Entered New Map 149 | . . 149 Time Decay 390 | . 260 130 Lost Part 34 | . . 34 Squads Dispatched 3 | . 3 . Investigation 2 | . 2 . Extermination . | . . . Reinforcement 1 | . 1 . Assault . | . . . Garrison . | . . . Intercept . | . . . Searches Triggered . | . . . Construction Impeded . | . . . Haulers Reinforced . | . . . Active Scanning Responses . | . . . Cargo Convoy Interrupts . | . . . Stealth | -11 -10 -10 --------- Run | Yrd Mat Min Distress Signals 2 | . 2 . Communications Jammed . | . . . Distress Signals . | . . . Times Spotted 67 | . 26 41 Peak Tracking Total 18 | . 4 18 Tactical Retreats 3 | . . 3 ECM-based Alert Blocks 1 | . . 1 Traps | -11 -10 -10 ------- Run | Yrd Mat Min Traps Triggered 1 | . 1 . Indirectly . | . . . Trap Hack Attempts . | . . . Triggered . | . . . Disarmed 6 | . 6 . Reprogrammed . | . . . Reused . | . . . Traps Extracted . | . . . Installed . | . . . Triggered . | . . . Machines | -11 -10 -10 ---------- Run | Yrd Mat Min Machines Disabled . | . . . Max in Single Turn . | . . . Machines Repaired . | . . . Machines Dismantled . | . . . Machines Sabotaged . | . . . Overloaded Fab Kills . | . . . Hacking | -11 -10 -10 --------- Run | Yrd Mat Min Machines Accessed 3 | . 3 . Terminals 2 | . 2 . Fabricators . | . . . Repair Stations . | . . . Recycling Units 1 | . 1 . Scanalyzers . | . . . Garrison Access . | . . . Total Hacks 14 | . 14 . Successful 11 | . 11 . Failed 3 | . 3 . Catastrophic . | . . . Database Lockouts . | . . . Manual . | . . . Terminals 10 | . 10 . Fabricators . | . . . Repair Stations . | . . . Recycling Units 4 | . 4 . Scanalyzers . | . . . Garrison Access . | . . . Terminal Hacks 9 | . 9 . Record 3 | . 3 . Prototype ID Bank 1 | . 1 . Alert Level 1 | . 1 . Locate Traps 1 | . 1 . Disarm Traps 1 | . 1 . Dispatch Records 1 | . 1 . Zone Layout 1 | . 1 . Fabricator Hacks . | . . . Repair Station Hacks . | . . . Recycling Unit Hacks 2 | . 2 . Retrieve Matter 2 | . 2 . Scanalyzer . | . . . Garrison Access Hacks . | . . . Unauthorized Hacks . | . . . Terminals . | . . . Fabricators . | . . . Repair Stations . | . . . Recycling Units . | . . . Scanalyzers . | . . . Garrison Access . | . . . Data Cores Recovered . | . . . Used . | . . . Hacking Detections 3 | . 3 . Full Trace Events 2 | . 2 . Feedback Events . | . . . Feedback Blocked . | . . . Robot Schematics Acquired . | . . . Robots Built . | . . . Authchips . | . . . Time . | . . . Total Robot Build Rating . | . . . Part Schematics Acquired . | . . . Parts Built . | . . . Authchips . | . . . Time . | . . . Total Part Build Rating . | . . . Part Studies Acquired . | . . . Parts Repaired . | . . . Time . | . . . Parts Recycled . | . . . Recycled Matter . | . . . Retrieved Matter 85 | . 85 . Retrieved Components . | . . . Parts Scanalyzed . | . . . Part Schematics Acquired . | . . . Parts Damaged . | . . . Bothacking | -11 -10 -10 ------------ Run | Yrd Mat Min Used RIF Installer . | . . . Robots Hacked . | . . . Non-combat . | . . . Combat . | . . . Robot Hacks Applied . | . . . Relay Couplers Released . | . . . Fabnet Peak Effective % . | . . . Robots Rewired . | . . . Allies Hacked . | . . . Hacks Repelled . | . . . Allies | -11 -10 -10 -------- Run | Yrd Mat Min Total Allies . | . . . Largest Group . | . . . Highest-Rated Group . | . . . Highest-Rated Ally . | . . . Total Orders . | . . . Ally Attacks . | . . . Total Damage . | . . . Kills . | . . . Allies Corrupted . | . . . Allies Melted . | . . . Intel | -11 -10 -10 ------- Run | Yrd Mat Min Active Infowar (turns) 568 | . 255 313 ECM 568 | . 255 313 Robot Analysis Total . | . . . Derelict Logs Recovered . | . . . Drone Launches . | . . . Drone Recoveries . | . . . Exploration | -11 -10 -10 ------------- Run | Yrd Mat Min Turns Passed 1179 | 69 789 321 Spaces Moved 609 | 60 405 144 Core 25 | 24 . 1 Treads 25 | . . 25 Legs 550 | 27 405 118 Wheels 9 | 9 . . Hover . | . . . Flight . | . . . Fastest Speed 50 | 50 120 160 Average Speed 161 | 86 161 191 Slowest Speed 450 | 120 190 450 Overloaded Moves . | . . . Propulsion Burnouts . | . . . Robots Hopped . | . . . Potential Cave-ins . | . . . Cave-ins Triggered . | . . . Exploration Rate (%) 34 | 4 56 43 Regions Visited 2 Branch Regions 1 Pre-discovered Areas . | . . . Known Exits Taken . | . . . Unknown Exits Taken 2 | 1 1 . Scrap Searched . | . . . Spaces Dug . | . . . Terrain Destroyed 61 | . 61 . Melee . | . . . Projectile . | . . . AOE 61 | . 61 . Terrain Rammed . | . . . Walls Destroyed . | . . . Machines Disabled . | . . . Actions | -11 -10 -10 --------- Run | Yrd Mat Min Total 716 | 75 475 166 Wait 1 | 1 . . Move 607 | 59 404 144 Hop . | . . . Pick Up 18 | 8 9 1 Fast Attach 4 | 4 . . Attach 8 | 2 4 2 Detach 1 | . 1 . Swap 12 | 1 10 1 Drop 13 | . 10 3 Fire 50 | . 35 15 Melee . | . . . Ram . | . . . Kick 2 | . 2 . Crush . | . . . Escape Stasis . | . . . Rewire . | . . . Trap . | . . . Miscellaneous . | . . . Route ------- -11/Scrapyard -10/Materials -10/Mines History --------- Turn | Location | Event 26 | -11/Scrapyard | Discovered new exit (range 15) 70 | -11/Scrapyard | Entered Materials 309 | -10/Materials | Build established: Mutant 356 | -10/Materials | Discovered new exit (range 13) 859 | -10/Materials | Entered Mines 1066 | -10/Mines | Assembled infested the area 1112 | -10/Mines | Core integrity fell below 50% 1157 | -10/Mines | Lost 4 parts (1p2n1w) 1169 | -10/Mines | Core integrity fell below 20% 1180 | -10/Mines | Destroyed by as-09132 with Assembled Maul Last Messages --------------- 01124_ as-96279 destroyed. 01124_ as-35883 destroyed. 01126_ as-78670 destroyed. 01126_ Lgt. Ion Engine destroyed. 01127_ The unstable cave ceiling collapses. 01134_ as-81656 destroyed. 01135_ The unstable cave ceiling collapses. 01165_ Lgt. Treads destroyed. 01167_ as-09132 sneak attacks. 01167_ K-01 Serf system corrupted by crushing effect. 01167_ K-01 Serf knocked back. 01168_ K-01 Serf system terminally corrupted. 01172_ ECM Suite destroyed. 01172_ System corrupted by crushing effect (+1). 01173_ as-40293 destroyed. 01175_ Acquired 13 matter. 01177_ Acquired 7 matter. 01177_ Assault Rifle destroyed. 01177_ System corrupted by crushing effect (+1). Map ----- +----------------------------------------------------+ | ???????????????????????????????????????????### | | ??????????????????????????????????????????## | | ??????????????????????????????????????????# | | ??????????????????????????????????????????# | | ??????????????????????????????????????????# | | ??????????????????????????????????????????# | | ??????????????????????????????????????????## | | ???????????????????????????????????????????## | | ????????????????????????????????????????????## | | ???????????????????????? ???????????????????# | | ??????????????????????? #???????????????????# | | ??????????????????????? #???????????????????# | | ??????????????????????? #???????????????????# | | ??????????????????????? #???????????????????# | | ??????????????????????# #??????????????????## | | ?????????????????????## #???????????????#### | | ????????????????###### t#??????????????## | | ???????????????## #??????????????# | | ???????????????# #??????????????# | | ???????????????? #??????????????## | | ????????????????? ##??????????????### # | | ??????????????????# t #????????????????# # | | ???????????????????# #????????????????# | | ??????????????????## #????????????????# # | | ???????????????#### a ##????????####?### # | | ???????????????# %@ #???????## ### # | | ??????????????# ### #???????# # | | ??????????????# #??## #???????# | | ??????????????# #????## #???????## | | ??????????????# ??????# #????????## | | ?????????????# ??????## #?????????# # | | ???????????? ??????## #????###### ### | | ??????????? ??????# #????# ##?? | | ?????????? ???????# #????# ##### ###??? | | ?????????? ????????# #????# #???####????? | | ??????????# ????####### ##??### #???????????? | | ???????????????### ## #???# #???????????? | | ?????????????### ##### ###???????????? | | ????????????## ### #?????????????? | | ????????????# # ## #### ##?????????????? | | ????????????# ## #??# #??????????????? | | ????????????# ## #### #??????????????? | | ???????????# % ## ## ##?????????????? | | ???????????# ## #?????????????? | | ???????????## ## # #?????????????? | | ????????????# ## #?????????????? | | ???????????? #### ##?????????????? | | ??????????? ###??### ###??????????????? | | ?????????? ?????#####????????????????? | | ???????## ??????????????????????????? | +----------------------------------------------------+ Best States ------------- Heat Dissipation 25 Energy Generation 10 Energy Capacity 500 Matter Stores 300 Matter Capacity 300 Sight Range 16 Terrain Scan Density 10 ECM Strength 1 Evasion (%) 55 Recoil Reduction 2 Item Schematics ----------------- None Robot Schematics ------------------ None Fabricated ------------ Nothing Repaired ---------- Nothing Studied --------- None Alien Tech Used ----------------- None Achievements -------------- DATA ERROR: Steam Global Achievement% For Emergencies Only Organ Harvest Challenges ------------ None Game ------ Seed TechConstructSheargun Manual? 0 Play Time 00:15:33 Cumulative 6.7 hours Start 2025.11.20 @ 20:17:28 End 2025.11.20 @ 20:32:21 Sessions 1 Manual Loads 0 Difficulty Rogue Special Mode None Game No. 19 Rogue 7 Adventurer 12 Explorer 0 Win Type - Total 0 Types 0/0/0/0/0/0/0/0/0/0 Lore% 6 Gallery% 13 Achievement% 9 Wizard Run 0 Options --------- Layout 1 ASCII 0 Keyboard 0 Movement Mouse Keybinds 0 Fullscreen 2 Font 24/Smallcaps Map View 50x35 Zoom Use 0% Tactical HUD 1 Map Filters NONE Filters NONE Steam 1 RUN: 740203b9-2b66-4207-a9da-f7fc22178f1b